{"text_format":"2","workbook":"xlsx","n_sheets":2,"sheets":["KVS","FOOSSZ"],"not_rendered":{"charts":0,"images":0,"macros":0,"external_links":0,"defined_names":0,"comments":0,"pivot_tables":0},"unopened":[],"bounds":{"document_bytes":16777216,"sheet_cells":100000,"run_cost":"one","rows_first":2000,"rows_last":500,"rows_between":2000,"halvings":0,"cell_chars":16384,"cell_head_chars":4096},"cells_cut":0,"cells_raw":0,"read":"whole","date_system":"1900"}

{"sheet":"KVS","index":0,"n_rows":1004,"n_cols":10,"rows_kept":1004,"cut":false,"hidden":false,"merged":[]}
[]
["Fejezet szöveg / Tételsorszám","Tételszámok","Tételszövegek","Mennyiség","Mértékegység"]
[]
["Fűtés"]
[]
[null,null,"Köpenycsöves, előszigetelt flexibilis fűtési vezeték,"]
[null,null,"szorítóbilincses csatlakozással,"]
[null,null,"földárokba szerelve, de a földmunka ára nélkül,"]
[null,null,"UPONOR Ecoflex Thermo Twin típusú,"]
[null,null,"2 műanyag haszoncsővel PE-X, PN 6, 95°C"]
[1,"54-262-008-063-15-01303","2x25x2,3/175 mm 1018138",{"$f":"ROUND( 200,0 )","v":200},"m","A.:",null,{"$f":"ROUND( D$11*G11,0 )","v":0}]
[{"$nulls":5},"D.:",null,null,{"$f":"ROUND( D$11*G12,0 )","v":0}]
[{"$nulls":5},"G.:",null,null,null,{"$f":"ROUND( D$11*G13,2 )","v":0}]
[]
[]
[null,null,"Varratnélküli fekete acélcsőből készült fűtési vezeték,"]
[null,null,"csőhajlításokkal, csőhüvelyekkel,"]
[null,null,"hegesztett kötésekkel, szakaszos nyomáspróbával."]
[null,null,"Anyagminőség: MSZ EN 10255: 2005 St. 37,0"]
[null,null,"(MSZ 120-2: 1982 A37),"]
[null,null,"szabadon szerelve,"]
[null,null,"csőbilincsekkel, felületvédelem nélkül"]
[2,"81-411-107-007-01-11101","2\"",{"$f":"ROUND( 15,2 )","v":15},"m","A.:",null,{"$f":"ROUND( D$23*G23,0 )","v":0}]
[{"$nulls":5},"D.:",null,null,{"$f":"ROUND( D$23*G24,0 )","v":0}]
[{"$nulls":5},"G.:",null,null,null,{"$f":"ROUND( D$23*G25,2 )","v":0}]
[]
[]
[null,null,"Varratnélküli fekete acélcsőből készült fűtési vezeték,"]
[null,null,"csőhajlításokkal, csőhüvelyekkel,"]
[null,null,"hegesztett kötésekkel, szakaszos nyomáspróbával."]
[null,null,"Anyagminőség: MSZ EN 10255: 2005 St. 37,0"]
[null,null,"(MSZ 120-2: 1982 A37),"]
[null,null,"szabadon szerelve,"]
[null,null,"csőbilincsekkel, felületvédelem nélkül"]
[3,"81-411-104-004-01-11101","1\"",{"$f":"ROUND( 5,2 )","v":5},"m","A.:",null,{"$f":"ROUND( D$35*G35,0 )","v":0}]
[{"$nulls":5},"D.:",null,null,{"$f":"ROUND( D$35*G36,0 )","v":0}]
[{"$nulls":5},"G.:",null,null,null,{"$f":"ROUND( D$35*G37,2 )","v":0}]
[]
[]
[null,null,"Változó nyomású zárt tágulási tartály"]
[null,null,"fűtési és hűtési rendszerek számára,"]
[null,null,"nem cserélhető membránnal,"]
[null,null,"maximális hőmérséklet a membránon 70°C,"]
[null,null,"1,5 bar légoldali előfeszítéssel,"]
[null,null,"piros színben, gyári tartozékkal,"]
[null,null,"felszerelve,"]
[null,null,"REFLEX \"N\" típusú, 6 bar/120°C"]
[4,"82-461-105-200-77-11101","N 200 j. 200 literes RX 7213300",{"$f":"ROUND( 1,2 )","v":1},"db","A.:",null,{"$f":"ROUND( D$48*G48,0 )","v":0}]
[{"$nulls":5},"D.:",null,null,{"$f":"ROUND( D$48*G49,0 )","v":0}]
[{"$nulls":5},"G.:",null,null,null,{"$f":"ROUND( D$48*G50,2 )","v":0}]
[]
[]
[null,null,"Gyorscsatlakozó szelep"]
[null,null,"avatatlan elzárás elleni biztosítással,"]
[null,null,"ürítő csonkkal, 10 bar/120°C,"]
[null,null,"felszerelve,"]
[null,null,"REFLEX \"SU\" típusú,"]
[5,"82-121-204-004-77-11121","SU 1\" x 1\" RX 7613100",{"$f":"ROUND( 3,2 )","v":3},"db","A.:",null,{"$f":"ROUND( D$58*G58,0 )","v":0}]
[{"$nulls":5},"D.:",null,null,{"$f":"ROUND( D$58*G59,0 )","v":0}]
[{"$nulls":5},"G.:",null,null,null,{"$f":"ROUND( D$58*G60,2 )","v":0}]
[]
[]
[null,null,"Nedvestengelyű, elektronikusan szabályozott"]
[null,null,"keringtető szivattyú, egyes,"]
[null,null,"fűtési, klímaalkalmazási és hűtési célokra,"]
[null,null,"(\"A energia osztályú\"),"]
[null,null,"elektromotorral egybeépítve,"]
[null,null,"csővezetékbe beépítve,"]
[null,null,"WILO Stratos típusú,"]
[null,null,"karimás kivitelben, ellenkarimákkal és kötéskészletekkel"]
[6,"82-712-206-124-06-11113","WILO Stratos 40/1-12 fűtési szivattyú",{"$f":"ROUND( 1,2 )","v":1},"db","A.:",null,{"$f":"ROUND( D$71*G71,0 )","v":0}]
[{"$nulls":5},"D.:",null,null,{"$f":"ROUND( D$71*G72,0 )","v":0}]
[{"$nulls":5},"G.:",null,null,null,{"$f":"ROUND( D$71*G73,2 )","v":0}]
[]
[]
[null,null,"Visszacsapószelep 306 sz., felszerelve"]
[7,"82-121-206-006-42-34111","1 1/2\" 306008",{"$f":"ROUND( 1,2 )","v":1},"db","A.:",null,{"$f":"ROUND( D$77*G77,0 )","v":0}]
[{"$nulls":5},"D.:",null,null,{"$f":"ROUND( D$77*G78,0 )","v":0}]
[{"$nulls":5},"G.:",null,null,null,{"$f":"ROUND( D$77*G79,2 )","v":0}]
[]
[]
[null,null,"Gömbcsap kézikarral,"]
[null,null,"ellenkarimákkal, tömítésekkel, anyáscsavarokkal,"]
[null,null,"felszerelve,"]
[null,null,"szénacélból,"]
[null,null,"MVV. 7,10 sz. UNIBALL 23952 típusú, PN 40"]
[8,"82-122-206-006-02-27211","DN 40",{"$f":"ROUND( 5,2 )","v":5},"db","A.:",null,{"$f":"ROUND( D$87*G87,0 )","v":0}]
[{"$nulls":5},"D.:",null,null,{"$f":"ROUND( D$87*G88,0 )","v":0}]
[{"$nulls":5},"G.:",null,null,null,{"$f":"ROUND( D$87*G89,2 )","v":0}]
[]
[]
[null,null,"Rugóterhelésű visszacsapószelep,"]
[null,null,"karimás kivitelben, ellenkarimákkal, tömítésekkel,"]
[null,null,"anyáscsavarokkal, felszerelve,"]
[null,null,"MVV RETURNVENT 2,30 típusú, bronzból - PN 16"]
[9,"82-122-246-006-02-24231","DN 40",{"$f":"ROUND( 8,2 )","v":8},"db","A.:",null,{"$f":"ROUND( D$96*G96,0 )","v":0}]
[{"$nulls":5},"D.:",null,null,{"$f":"ROUND( D$96*G97,0 )","v":0}]
[{"$nulls":5},"G.:",null,null,null,{"$f":"ROUND( D$96*G98,2 )","v":0}]
[]
[]
[null,null,"Üzemviteli manométer,"]
[null,null,"fekete festett acél házzal, műszerüveg"]
[null,null,"ablakkal, réz ötvözet mérőművel,"]
[null,null,"felszerelve,"]
[null,null,"LOMBIK gyártmányú,"]
[null,null,"átm. 100 x 1/2\" alsó csatlakozással"]
[10,"82-552-111-004-83-12112","0- 4,0 bar mérési tartományban",{"$f":"ROUND( 2,2 )","v":2},"db","A.:",null,{"$f":"ROUND( D$107*G107,0 )","v":0}]
[{"$nulls":5},"D.:",null,null,{"$f":"ROUND( D$107*G108,0 )","v":0}]
[{"$nulls":5},"G.:",null,null,null,{"$f":"ROUND( D$107*G109,2 )","v":0}]
[]
[]
[null,null,"Ipari üveg hőmérő, kis egyenes,"]
[null,null,"környezetvédelmi előírásoknak megfelelő"]
[null,null,"töltőfolyadékkal,"]
[null,null,"felszerelve,"]
[null,null,"LOMBIK gyártmányú,"]
[null,null,"0+100°C mérési határok között"]
[11,"82-552-111-002-83-11122","103 mm bemerülő hosszal 11112-1050",{"$f":"ROUND( 2,2 )","v":2},"db","A.:",null,{"$f":"ROUND( D$118*G118,0 )","v":0}]
[{"$nulls":5},"D.:",null,null,{"$f":"ROUND( D$118*G119,0 )","v":0}]
[{"$nulls":5},"G.:",null,null,null,{"$f":"ROUND( D$118*G120,2 )","v":0}]
[]
[]
[null,null,"Hőcserélő Hegtoldatos végekkel, szerelőkerettel, EPP XB12 H:50-80 M:50-72 L:36-"]
[null,null,"60, (HI: A) szigeteléssel, felszerelve, hidraulikus hálózatra kötve"]
[12,"M-82-581-115-032-71-81101","XB12L-1-60 G5/4, (HI: A)",{"$f":"ROUND( 1,2 )","v":1},"db","A.:",null,{"$f":"ROUND( D$125*G125,0 )","v":0}]
[{"$nulls":5},"D.:",null,null,{"$f":"ROUND( D$125*G126,0 )","v":0}]
[{"$nulls":5},"G.:",null,null,null,{"$f":"ROUND( D$125*G127,2 )","v":0}]
[]
[]
[null,null,"Menetes szűkítő közcsavar horganyzott kivitelben,"]
[null,null,"csővezetékbe szerelve,"]
[null,null,"U 241 sz."]
[13,"81-112-228-087-12-12422","2 1/2\"- 2\"",{"$f":"ROUND( 5,2 )","v":5},"db","A.:",null,{"$f":"ROUND( D$133*G133,0 )","v":0}]
[{"$nulls":5},"D.:",null,null,{"$f":"ROUND( D$133*G134,0 )","v":0}]
[{"$nulls":5},"G.:",null,null,null,{"$f":"ROUND( D$133*G135,2 )","v":0}]
[]
[]
[null,null,"Rákötés meglévő fűtési hálózatra"]
[14,"K-00-000131","DN80",{"$f":"ROUND( 4,2 )","v":4},"klt","A.:",null,{"$f":"ROUND( D$139*G139,0 )","v":0}]
[{"$nulls":5},"D.:",null,null,{"$f":"ROUND( D$139*G140,0 )","v":0}]
[{"$nulls":5},"G.:",null,null,null,{"$f":"ROUND( D$139*G141,2 )","v":0}]
[]
[]
[null,null,"Fűtésszerelési munkák próbái,"]
[null,null,"fűtési vezetékrendszer nyomáspróbája"]
[15,"82-999-211-001-00-00000",null,{"$f":"ROUND( 8,2 )","v":8},"óra","A.:",null,{"$f":"ROUND( D$146*G146,2 )","v":0}]
[{"$nulls":5},"D.:",null,null,{"$f":"ROUND( D$146*G147,0 )","v":0}]
[{"$nulls":5},"G.:",null,null,null,{"$f":"ROUND( D$146*G148,2 )","v":0}]
[]
[]
[null,null,"Fűtésszerelési munkák próbái,"]
[null,null,"hatósági nyomáspróba"]
[16,"82-999-211-002-00-00000",null,{"$f":"ROUND( 8,2 )","v":8},"óra","A.:",null,{"$f":"ROUND( D$153*G153,2 )","v":0}]
[{"$nulls":5},"D.:",null,null,{"$f":"ROUND( D$153*G154,0 )","v":0}]
[{"$nulls":5},"G.:",null,null,null,{"$f":"ROUND( D$153*G155,2 )","v":0}]
[]
[]
[null,null,"Fűtésszerelési munkák próbái,"]
[null,null,"kazánok, illetve hőközpont beüzemelése"]
[17,"82-999-236-006-00-00000","279,121-418,680 W telj. -ig",{"$f":"ROUND( 1,2 )","v":1},"db","A.:",null,{"$f":"ROUND( D$160*G160,2 )","v":0}]
[{"$nulls":5},"D.:",null,null,{"$f":"ROUND( D$160*G161,0 )","v":0}]
[{"$nulls":5},"G.:",null,null,null,{"$f":"ROUND( D$160*G162,2 )","v":0}]
[]
[]
[null,null,"Fűtésszerelési munkák átadás-átvételi eljárásával"]
[null,null,"kapcsolatos költségek,"]
[null,null,"átadási dokumentáció készítés"]
[18,"82-999-241-001-00-00000",null,{"$f":"ROUND( 4,2 )","v":4},"óra","A.:",null,{"$f":"ROUND( D$168*G168,2 )","v":0}]
[{"$nulls":5},"D.:",null,null,{"$f":"ROUND( D$168*G169,0 )","v":0}]
[{"$nulls":5},"G.:",null,null,null,{"$f":"ROUND( D$168*G170,2 )","v":0}]
[]
[]
[null,null,"Fűtésszerelési munkák átadás-átvételi eljárásával"]
[null,null,"kapcsolatos költségek,"]
[null,null,"átadási eljárás lefolytatása"]
[19,"82-999-241-002-00-00000",null,{"$f":"ROUND( 4,2 )","v":4},"óra","A.:",null,{"$f":"ROUND( D$176*G176,2 )","v":0}]
[{"$nulls":5},"D.:",null,null,{"$f":"ROUND( D$176*G177,0 )","v":0}]
[{"$nulls":5},"G.:",null,null,null,{"$f":"ROUND( D$176*G178,2 )","v":0}]
[]
[]
[null,null,"Fűtésszerelési munkák átadás-átvételi eljárásával"]
[null,null,"kapcsolatos költségek,"]
[null,null,"kezelési utasítás készítése"]
[20,"82-999-241-003-00-00000",null,{"$f":"ROUND( 4,2 )","v":4},"óra","A.:",null,{"$f":"ROUND( D$184*G184,2 )","v":0}]
[{"$nulls":5},"D.:",null,null,{"$f":"ROUND( D$184*G185,0 )","v":0}]
[{"$nulls":5},"G.:",null,null,null,{"$f":"ROUND( D$184*G186,2 )","v":0}]
[]
[]
[null,null,"Fűtésszerelési munkák átadás-átvételi eljárásával"]
[null,null,"kapcsolatos költségek,"]
[null,null,"kezelésre vonatkozó kioktatás"]
[21,"82-999-241-004-00-00000",null,{"$f":"ROUND( 4,2 )","v":4},"óra","A.:",null,{"$f":"ROUND( D$192*G192,2 )","v":0}]
[{"$nulls":5},"D.:",null,null,{"$f":"ROUND( D$192*G193,0 )","v":0}]
[{"$nulls":5},"G.:",null,null,null,{"$f":"ROUND( D$192*G194,2 )","v":0}]
[]
[]
[null,null,"Munkaárok földkiemelése közmű nélküli területen, gépi erővel,"]
[null,null,"kiegészítő kézi munkával, bármely konzisztenciájú I-IV. osztályú"]
[null,null,"talajban, a kitermelt föld depóniába vagy járműre rakásával,"]
[null,null,"dúcolás nélkül"]
[22,"21-315-031-000-00-00000","3,0 m2 szelvényig",{"$f":"ROUND( 100,2 )","v":100},"m3","A.:",null,{"$f":"ROUND( D$201*G201,2 )","v":0}]
[{"$nulls":5},"D.:",null,null,{"$f":"ROUND( D$201*G202,0 )","v":0}]
[{"$nulls":5},"G.:",null,null,null,{"$f":"ROUND( D$201*G203,0 )","v":0}]
[]
[]
[null,null,"Munkaárok földkiemelése közművesített területen, kézi erővel,"]
[null,null,"bármely konzisztenciájú, I-IV osztályú talajban, a kitermelt föld"]
[null,null,"depóniába vagy járműre rakásával,"]
[null,null,"dúcolás nélkül,"]
[null,null,"2,0 m2 szelvényig"]
[23,"21-315-002-000-00-00000","III. osztályú talajban",{"$f":"ROUND( 20,2 )","v":20},"m3","A.:",null,{"$f":"ROUND( D$211*G211,2 )","v":0}]
[{"$nulls":5},"D.:",null,null,{"$f":"ROUND( D$211*G212,0 )","v":0}]
[{"$nulls":5},"G.:",null,null,null,{"$f":"ROUND( D$211*G213,2 )","v":0}]
[]
[]
[null,null,"Földvisszatöltés munkagödörbe, vagy munkaárokba, tömörítés"]
[null,null,"nélkül, réteges elterítéssel, I-IV osztályú talajban,"]
[null,null,"kézi erővel, az anyag súlypontja karoláson belül,"]
[null,null,"a vezetéket környező"]
[24,"21-319-002-000-00-00000","50 cm-en túli szelvényrészben",{"$f":"ROUND( 40,2 )","v":40},"m3","A.:",null,{"$f":"ROUND( D$220*G220,2 )","v":0}]
[{"$nulls":5},"D.:",null,null,{"$f":"ROUND( D$220*G221,0 )","v":0}]
[{"$nulls":5},"G.:",null,null,null,{"$f":"ROUND( D$220*G222,2 )","v":0}]
[]
[]
[null,null,"Földvisszatöltés munkagödörbe, vagy munkaárokba, tömörítés"]
[null,null,"nélkül, réteges elterítéssel, I-IV osztályú talajban,"]
[null,null,"gépi erővel, az anyag súlypontja 10,0 m-en belül,"]
[null,null,"a vezetéket, műtárgyat környező"]
[25,"21-319-003-000-00-00000","50 cm-en túli szelvényrészben",{"$f":"ROUND( 80,2 )","v":80},"m3","A.:",null,{"$f":"ROUND( D$229*G229,2 )","v":0}]
[{"$nulls":5},"D.:",null,null,{"$f":"ROUND( D$229*G230,0 )","v":0}]
[{"$nulls":5},"G.:",null,null,null,{"$f":"ROUND( D$229*G231,0 )","v":0}]
[]
[]
[null,null,"Tömörítés bármely tömörítési osztályban, gépi erővel,"]
[null,null,"nagy felületen"]
[26,"21-810-002-000-00-00000","90% tömörségi fokra",{"$f":"ROUND( 120,0 )","v":120},"m3","A.:",null,{"$f":"ROUND( D$236*G236,0 )","v":0}]
[{"$nulls":5},"D.:",null,null,{"$f":"ROUND( D$236*G237,2 )","v":0}]
[{"$nulls":5},"G.:",null,null,null,{"$f":"ROUND( D$236*G238,0 )","v":0}]
[]
[]
[{"$nulls":7},{"$f":"ROUND( SUM(H5:H240),0 )","v":0},{"$f":"ROUND( SUM(I5:I240),0 )","v":0},{"$f":"ROUND( SUM(J5:J240),0 )","v":0}]
["Öntözés"]
[]
[null,null,"Műanyag nyomócső földárokba szerelve,"]
[null,null,"földmunka költsége nélkül, hegesztett kötésekkel,"]
[null,null,"PIPELIFE gyártmányú, PE víznyomócső, PE 80 anyagú, MSz EN 12201"]
[null,null,"SDR 11, PN 12,5 bar"]
[1,"54-331-010-090-02-31621","90 x 8,2 mm 80VSDR11090EN100K",0,"m","A.:",null,{"$f":"ROUND( D$248*G248,0 )","v":0}]
[{"$nulls":5},"D.:",null,null,{"$f":"ROUND( D$248*G249,0 )","v":0}]
[{"$nulls":5},"G.:",null,null,null,{"$f":"ROUND( D$248*G250,0 )","v":0}]
[]
[]
[null,null,"Műanyag nyomócső földárokba szerelve,"]
[null,null,"földmunka költsége nélkül, hegesztett kötésekkel,"]
[null,null,"PIPELIFE gyártmányú, PE víznyomócső, PE 80 anyagú, MSz EN 12201"]
[null,null,"SDR 11, PN 12,5 bar"]
[2,"54-331-009-080-02-31621","75 x 6,8 mm 80VSDR11075EN100K",0,"m","A.:",null,{"$f":"ROUND( D$257*G257,0 )","v":0}]
[{"$nulls":5},"D.:",null,null,{"$f":"ROUND( D$257*G258,0 )","v":0}]
[{"$nulls":5},"G.:",null,null,null,{"$f":"ROUND( D$257*G259,0 )","v":0}]
[]
[]
[null,null,"Műanyag nyomócső földárokba szerelve,"]
[null,null,"földmunka költsége nélkül, hegesztett kötésekkel,"]
[null,null,"PIPELIFE gyártmányú, PE víznyomócső, PE 80 anyagú, MSz EN 12201"]
[null,null,"SDR 11, PN 12,5 bar"]
[3,"54-331-008-070-02-31621","63 x 5,8 mm 80VSDR11063EN100K",0,"m","A.:",null,{"$f":"ROUND( D$266*G266,0 )","v":0}]
[{"$nulls":5},"D.:",null,null,{"$f":"ROUND( D$266*G267,0 )","v":0}]
[{"$nulls":5},"G.:",null,null,null,{"$f":"ROUND( D$266*G268,0 )","v":0}]
[]
[]
[null,null,"Műanyag nyomócső földárokba szerelve,"]
[null,null,"földmunka költsége nélkül, hegesztett kötésekkel,"]
[null,null,"PIPELIFE gyártmányú, PE víznyomócső, PE 80 anyagú, MSz EN 12201"]
[null,null,"SDR 11, PN 12,5 bar"]
[4,"54-331-007-060-02-31621","50 x 4,6 mm 80VSDR11050EN100K",0,"m","A.:",null,{"$f":"ROUND( D$275*G275,0 )","v":0}]
[{"$nulls":5},"D.:",null,null,{"$f":"ROUND( D$275*G276,0 )","v":0}]
[{"$nulls":5},"G.:",null,null,null,{"$f":"ROUND( D$275*G277,0 )","v":0}]
[]
[]
[null,null,"Műanyag nyomócső idomai földárokba szerelve,"]
[null,null,"földmunka költsége nélkül, hegesztett kötésekkel,"]
[null,null,"PIPELIFE gyártmányú, PE könyökidom, PE 80 vagy 100 anyagú, simavégű,"]
[null,null,"SDR 11, 90°-os"]
[5,"54-336-006-050-02-42180","átm. 40 mm PEKO040-90FSDR11",0,"db","A.:",null,{"$f":"ROUND( D$284*G284,0 )","v":0}]
[{"$nulls":5},"D.:",null,null,{"$f":"ROUND( D$284*G285,0 )","v":0}]
[{"$nulls":5},"G.:",null,null,null,{"$f":"ROUND( D$284*G286,0 )","v":0}]
[]
[]
[null,null,"Tokos lefolyóvezeték műanyagból,"]
[null,null,"gumigyűrűs kötésekkel, szakaszos tömörségi próbával,"]
[null,null,"földárokban szerelve, csőidomokkal és csőtartókkal együtt."]
[null,null,"Anyaga: PVC-KG, védőcsőként szerelve"]
[null,null,"PIPELIFE típusú,"]
[6,"M-81-241-110-110-01-92011","átm. 110 x 3,2 mm KGEM110/1M-S",0,"m","A.:",null,{"$f":"ROUND( D$294*G294,0 )","v":0}]
[{"$nulls":5},"D.:",null,null,{"$f":"ROUND( D$294*G295,0 )","v":0}]
[{"$nulls":5},"G.:",null,null,null,{"$f":"ROUND( D$294*G296,2 )","v":0}]
[]
[]
[null,null,"Műanyag nyomócső idomai földárokba szerelve,"]
[null,null,"földmunka költsége nélkül, hegesztett kötésekkel,"]
[null,null,"PIPELIFE gyártmányú, PE T-idom 90°-os, PE 80 vagy 100 anyagú, simavégű,"]
[null,null,"SDR 11, szűkitett kivitelben"]
[7,"54-336-009-087-02-42520","átm. 75- 40 mm PET075-063SDR11",0,"db","A.:",null,{"$f":"ROUND( D$303*G303,0 )","v":0}]
[{"$nulls":5},"D.:",null,null,{"$f":"ROUND( D$303*G304,0 )","v":0}]
[{"$nulls":5},"G.:",null,null,null,{"$f":"ROUND( D$303*G305,0 )","v":0}]
[]
[]
[null,null,"Műanyag öntözőcső idomai földárokba szerelve,"]
[null,null,"földmunka költsége nélkül, gyorskötő csatlakozással,"]
[null,null,"GANZ-HYDRO, PIPELIFE gyártmányú, KPE külsőmenetes gyorskötő,"]
[null,null,"PN 10 bar"]
[8,"25-419-013-045-26-32336","átm. 32x1 1/4\" 06154",0,"db","A.:",null,{"$f":"ROUND( D$312*G312,0 )","v":0}]
[{"$nulls":5},"D.:",null,null,{"$f":"ROUND( D$312*G313,0 )","v":0}]
[{"$nulls":5},"G.:",null,null,null,{"$f":"ROUND( D$312*G314,2 )","v":0}]
[]
[]
[null,null,"Menetes szerelvény beépítése öntözőrendszerbe,"]
[null,null,"Rainbird típusú, vízkonnektor, kulccsal"]
[9,"M-25-419-033-003-26-00307","1\", bronz 47300",0,"db","A.:",null,{"$f":"ROUND( D$319*G319,0 )","v":0}]
[{"$nulls":5},"D.:",null,null,{"$f":"ROUND( D$319*G320,0 )","v":0}]
[{"$nulls":5},"G.:",null,null,null,{"$f":"ROUND( D$319*G321,2 )","v":0}]
[]
[]
[null,null,"Szűkítő idom vörösöntvényből,"]
[null,null,"menetes kötéssel csővezetékbe szerelve,"]
[null,null,"BÄNNINGER 3240 típusú, belső-belső menettel"]
[10,"81-112-215-054-21-35421","1 1/4\"- 1\"",0,"db","A.:",null,{"$f":"ROUND( D$327*G327,0 )","v":0}]
[{"$nulls":5},"D.:",null,null,{"$f":"ROUND( D$327*G328,0 )","v":0}]
[{"$nulls":5},"G.:",null,null,null,{"$f":"ROUND( D$327*G329,2 )","v":0}]
[]
[]
[null,null,"DN32 5/4\" BSP COLOS CSŐ CSATLAKOZÓ HOLLANDERES KIVITEL (60ˇ-OS "]
[null,null,"BELSŐ KÚPPAL)"]
[11,"M-82-723-632-001-06-33622","DN32 5/4\" BSP COLOS CSŐ CSATLAKOZÓ",0,"db","A.:",null,{"$f":"ROUND( D$334*G334,0 )","v":0}]
[{"$nulls":5},"D.:",null,null,{"$f":"ROUND( D$334*G335,0 )","v":0}]
[{"$nulls":5},"G.:",null,null,null,{"$f":"ROUND( D$334*G336,2 )","v":0}]
[]
[]
[null,null,"Tömlő, 25 m hosszú,"]
[null,null,"felszerelve"]
[null,null,"Magmaflex 3 rétegű csavarodásmentes locsolótömlő 5/4? 25m"]
[12,"M-82-723-632-001-06-33622","2046592 DN 32",0,"db","A.:",null,{"$f":"ROUND( D$342*G342,0 )","v":0}]
[{"$nulls":5},"D.:",null,null,{"$f":"ROUND( D$342*G343,0 )","v":0}]
[{"$nulls":5},"G.:",null,null,null,{"$f":"ROUND( D$342*G344,2 )","v":0}]
[]
[]
[null,null,"Egyedi szivattyúház építése 2,7 mx2,0 mx2,2 m(SZ x H x M)méretekkel , Vasalt "]
[null,null,"beton alappal "]
[null,null,"15 cm kavics feltöltéssel,"]
[null,null,"30x30 mm Zártszelvény keretszerkezettel, beton alaphoz rögzítve, kezelt, "]
[null,null,"impregnált"]
[null,null,"és festett farostlemez oldalfalakkal és tetőszerkezettel, Nyitható kezelt fa "]
[null,null,"szerkezetű 2 m x 1,0 m búvó nyílással, alsó felső szellőző ráccsal 150x 300 "]
[null,null,"mm-es esővédő és rovarvédő ráccsal ellátva."]
[13,"M-53-440-001-001-21-18111","Egyedi szivattyúház építése",0,"db","A.:",null,{"$f":"ROUND( D$355*G355,0 )","v":0}]
[{"$nulls":5},"D.:",null,null,{"$f":"ROUND( D$355*G356,0 )","v":0}]
[{"$nulls":5},"G.:",null,null,null,{"$f":"ROUND( D$355*G357,2 )","v":0}]
[]
[]
[null,null,"Golyóscsap, teljes átömlésű,"]
[null,null,"sárgarézből, nikkelezett kivitelben, felszerelve,"]
[null,null,"EFFEBI-Aster típusú, PN 40, 100°C-ig,"]
[null,null,"0802 kézikarral, egyenes kivitelben, külső-belső menetes"]
[14,"82-121-207-007-34-37111","2\"",0,"db","A.:",null,{"$f":"ROUND( D$364*G364,0 )","v":0}]
[{"$nulls":5},"D.:",null,null,{"$f":"ROUND( D$364*G365,0 )","v":0}]
[{"$nulls":5},"G.:",null,null,null,{"$f":"ROUND( D$364*G366,2 )","v":0}]
[]
[]
[null,null,"SZŰRŐ MŰANYAG HÁLÓS 2\" KM KUPAKKALl 20 m3/h"]
[15,"M-25-419-047-007-26-00305","2\" FVG/P",0,"db","A.:",null,{"$f":"ROUND( D$370*G370,0 )","v":0}]
[{"$nulls":5},"D.:",null,null,{"$f":"ROUND( D$370*G371,0 )","v":0}]
[{"$nulls":5},"G.:",null,null,null,{"$f":"ROUND( D$370*G372,2 )","v":0}]
[]
[]
[null,null,"Típus: H400 homokleválasztó"]
[null,null,"Méret: 2\""]
[null,null,"Csatlakozás: Be-ki 2\", Ürítés 5/4\""]
[null,null,"Max. átfolyási mennyiség: 400 l/perc"]
[null,null,"Max. nyomás: 8 bar"]
[16,"M-25-419-047-007-26-00305","VL H 400",0,"db","A.:",null,{"$f":"ROUND( D$380*G380,0 )","v":0}]
[{"$nulls":5},"D.:",null,null,{"$f":"ROUND( D$380*G381,0 )","v":0}]
[{"$nulls":5},"G.:",null,null,null,{"$f":"ROUND( D$380*G382,2 )","v":0}]
[]
[]
[null,null,"Műanyag öntözőcső idomai földárokba szerelve,"]
[null,null,"földmunka költsége nélkül, gyorskötő csatlakozással,"]
[null,null,"GANZ-HYDRO, PIPELIFE gyártmányú, KPE külsőmenetes gyorskötő,"]
[null,null,"PN 16 bar"]
[17,"25-419-017-088-26-32336","átm. 75x2 1/2\" 01598",0,"db","A.:",null,{"$f":"ROUND( D$389*G389,0 )","v":0}]
[{"$nulls":5},"D.:",null,null,{"$f":"ROUND( D$389*G390,0 )","v":0}]
[{"$nulls":5},"G.:",null,null,null,{"$f":"ROUND( D$389*G391,2 )","v":0}]
[]
[]
[null,null,"Menetes szűkítő közcsavar horganyzott kivitelben,"]
[null,null,"csővezetékbe szerelve,"]
[null,null,"U 241 sz."]
[18,"81-112-228-087-12-12422","2 1/2\"- 2\"",0,"db","A.:",null,{"$f":"ROUND( D$397*G397,0 )","v":0}]
[{"$nulls":5},"D.:",null,null,{"$f":"ROUND( D$397*G398,0 )","v":0}]
[{"$nulls":5},"G.:",null,null,null,{"$f":"ROUND( D$397*G399,2 )","v":0}]
[]
[]
[null,null,"Menetes szűkítő közcsavar horganyzott kivitelben,"]
[null,null,"csővezetékbe szerelve,"]
[null,null,"U 241 sz."]
[19,"81-112-229-098-12-12422","3\"-2 1/2\"",0,"db","A.:",null,{"$f":"ROUND( D$405*G405,0 )","v":0}]
[{"$nulls":5},"D.:",null,null,{"$f":"ROUND( D$405*G406,0 )","v":0}]
[{"$nulls":5},"G.:",null,null,null,{"$f":"ROUND( D$405*G407,2 )","v":0}]
[]
[]
[null,null,"Menetes szűkítő közcsavar horganyzott kivitelben,"]
[null,null,"csővezetékbe szerelve,"]
[null,null,"U 241 sz."]
[20,"81-112-227-075-11-12422","2\"-1 1/4\"",0,"db","A.:",null,{"$f":"ROUND( D$413*G413,0 )","v":0}]
[{"$nulls":5},"D.:",null,null,{"$f":"ROUND( D$413*G414,0 )","v":0}]
[{"$nulls":5},"G.:",null,null,null,{"$f":"ROUND( D$413*G415,2 )","v":0}]
[]
[]
[null,null,"FORAS KB 1000 T felszini szivattyú"]
[null,null,"Szivattyúház: vasöntvény"]
[null,null,"Első dekni: vasöntvény "]
[null,null,"Járókerék: bronz"]
[null,null,"Folyadék max. hőmérséklete: 90 °C"]
[null,null,"Nyomástűrés: 11 bar"]
[null,null,"Tengelytömítés: kerámia-grafit"]
[null,null,"Egyéb: iker járókerekes"]
[null,null,"Gyártó: Pentax S.p.a. , Olaszország"]
[21,"M-82-712-102-031-06-12221","IPs 25 GRD 121347394",0,"db","A.:",null,{"$f":"ROUND( D$427*G427,0 )","v":0}]
[{"$nulls":5},"D.:",null,null,{"$f":"ROUND( D$427*G428,0 )","v":0}]
[{"$nulls":5},"G.:",null,null,null,{"$f":"ROUND( D$427*G429,2 )","v":0}]
[]
[]
[null,null,"Golyóscsap, teljes átömlésű,"]
[null,null,"sárgarézből, nikkelezett kivitelben, felszerelve,"]
[null,null,"EFFEBI-Aster típusú, PN 40, 100°C-ig,"]
[null,null,"0802 kézikarral, egyenes kivitelben, külső-belső menetes"]
[22,"82-121-208-008-34-37111","2 1/2\"",0,"db","A.:",null,{"$f":"ROUND( D$436*G436,0 )","v":0}]
[{"$nulls":5},"D.:",null,null,{"$f":"ROUND( D$436*G437,0 )","v":0}]
[{"$nulls":5},"G.:",null,null,null,{"$f":"ROUND( D$436*G438,2 )","v":0}]
[]
[]
[null,null,"Zilmet Ultra-Pro CE cserélhető membrános hidrofor tartály, 500 l, 16 bar, álló"]
[23,"M-82-121-222-023-78-11114","Zilmet Ultra-Pro CE cserélhető membrános hidrofor tartály, 500 l",0,"db","A.:",null,{"$f":"ROUND( D$442*G442,0 )","v":0}]
[{"$nulls":5},"D.:",null,null,{"$f":"ROUND( D$442*G443,0 )","v":0}]
[{"$nulls":5},"G.:",null,null,null,{"$f":"ROUND( D$442*G444,2 )","v":0}]
[]
[]
[null,null,"rasteli 420 GH DN80 tervezett öntöttvas lábszelep"]
[24,"M-82-182-212-012-91-93832","rasteli 420 GH DN80",0,"db","A.:",null,{"$f":"ROUND( D$448*G448,0 )","v":0}]
[{"$nulls":5},"D.:",null,null,{"$f":"ROUND( D$448*G449,0 )","v":0}]
[{"$nulls":5},"G.:",null,null,null,{"$f":"ROUND( D$448*G450,2 )","v":0}]
[]
[]
[null,null,"Hegeszthető karima peremestoldat műanyagból,"]
[null,null,"elektromosan hegesztett kötéssel csővezetékbe szerelve."]
[null,null,"Anyaga: PP-R Randon Coopolimer."]
[null,null,"PIPELIFE PP-R típusú,"]
[25,"81-511-109-090-01-11581","átm. 90 mm PPKATO090I",0,"db","A.:",null,{"$f":"ROUND( D$457*G457,0 )","v":0}]
[{"$nulls":5},"D.:",null,null,{"$f":"ROUND( D$457*G458,0 )","v":0}]
[{"$nulls":5},"G.:",null,null,null,{"$f":"ROUND( D$457*G459,2 )","v":0}]
[]
[]
[null,null,"Egyedi szűrő berendezés, lábszelep előszűrő egyedi bólyával, 0,5 m "]
[null,null,"kavicsfeltöltéssel 3 m3 Kulé kavics 24-40-es, 30 cm vasalt beton talapzattal, "]
[null,null,"speciális betonozási eljárásssal, Betonba helyezett rozsdamentes acél menetes "]
[null,null,"rögzítéssel, 50x50x5.0-s rozsdamentes térhálóval, talapzati menetes rögzítési "]
[null,null,"lehetőséggel, beton talapzathoz rögzítve ellen anyával Spring PP09 "]
[null,null,"monofilamentesszűrőhálóval körbevéve3 sorban, rozsdamentes hálóhoz rögzítve. "]
[null,null,"átm. 2m -es"]
[26,"M-53-440-001-001-21-18111","Egyedi szűrő berendezés, lábszelep előszűrő",0,"db","A.:",null,{"$f":"ROUND( D$469*G469,0 )","v":0}]
[{"$nulls":5},"D.:",null,null,{"$f":"ROUND( D$469*G470,0 )","v":0}]
[{"$nulls":5},"G.:",null,null,null,{"$f":"ROUND( D$469*G471,2 )","v":0}]
[]
[]
[null,null,"Műanyag nyomócső idomai földárokba szerelve,"]
[null,null,"földmunka költsége nélkül, hegesztett kötésekkel,"]
[null,null,"PIPELIFE gyártmányú, PE könyökidom, PE 80 vagy 100 anyagú, simavégű,"]
[null,null,"SDR 11, 90°-os"]
[27,"54-336-007-060-02-42180","átm. 50 mm PEKO050-90FSDR11",0,"db","A.:",null,{"$f":"ROUND( D$478*G478,0 )","v":0}]
[{"$nulls":5},"D.:",null,null,{"$f":"ROUND( D$478*G479,0 )","v":0}]
[{"$nulls":5},"G.:",null,null,null,{"$f":"ROUND( D$478*G480,0 )","v":0}]
[]
[]
[null,null,"Műanyag nyomócső idomai földárokba szerelve,"]
[null,null,"földmunka költsége nélkül, hegesztett kötésekkel,"]
[null,null,"PIPELIFE gyártmányú, PE T-idom 90°-os, PE 80 vagy 100 anyagú, simavégű,"]
[null,null,"SDR 11, szűkitett kivitelben"]
[28,"54-336-008-075-02-42520","átm. 50-63- 50 mm PET063-050SDR11",0,"db","A.:",null,{"$f":"ROUND( D$487*G487,0 )","v":0}]
[{"$nulls":5},"D.:",null,null,{"$f":"ROUND( D$487*G488,0 )","v":0}]
[{"$nulls":5},"G.:",null,null,null,{"$f":"ROUND( D$487*G489,0 )","v":0}]
[]
[]
[null,null,"Műanyag nyomócső idomai földárokba szerelve,"]
[null,null,"földmunka költsége nélkül, hegesztett kötésekkel,"]
[null,null,"PIPELIFE gyártmányú, PE T-idom 90°-os, PE 80 vagy 100 anyagú, simavégű,"]
[null,null,"SDR 11, szűkitett kivitelben"]
[29,"54-336-009-087-02-42520","átm. 75- 63 mm PET075-063SDR11",0,"db","A.:",null,{"$f":"ROUND( D$496*G496,0 )","v":0}]
[{"$nulls":5},"D.:",null,null,{"$f":"ROUND( D$496*G497,0 )","v":0}]
[{"$nulls":5},"G.:",null,null,null,{"$f":"ROUND( D$496*G498,0 )","v":0}]
[]
[]
[null,null,"Rain-Bird VB-MAX boxban Rain-Bird 100-PGA PRS-Dial nyomásszabályzóval "]
[null,null,"átfolyásszabályzóval"]
[30,"M-96-421-002-001-01-13102","Rain-Bird VB-MAX boxban Rain-Bird 100-PGA",0,"db","A.:",null,{"$f":"ROUND( D$503*G503,0 )","v":0}]
[{"$nulls":5},"D.:",null,null,{"$f":"ROUND( D$503*G504,0 )","v":0}]
[{"$nulls":5},"G.:",null,null,null,{"$f":"ROUND( D$503*G505,2 )","v":0}]
[]
[]
[null,null,"Műanyag öntözőcső idomai földárokba szerelve,"]
[null,null,"földmunka költsége nélkül, gyorskötő csatlakozással,"]
[null,null,"GANZ-HYDRO, PIPELIFE gyártmányú, KPE külsőmenetes gyorskötő,"]
[null,null,"PN 10 bar"]
[31,"25-419-016-073-26-32336","átm. 63x1 1/2\" 01595",0,"db","A.:",null,{"$f":"ROUND( D$512*G512,0 )","v":0}]
[{"$nulls":5},"D.:",null,null,{"$f":"ROUND( D$512*G513,0 )","v":0}]
[{"$nulls":5},"G.:",null,null,null,{"$f":"ROUND( D$512*G514,2 )","v":0}]
[]
[]
[null,null,"Szűkítő idom vörösöntvényből,"]
[null,null,"menetes kötéssel csővezetékbe szerelve,"]
[null,null,"BÄNNINGER 3241 típusú, külső-belső menettel"]
[32,"81-112-226-064-21-35422","1 1/2\"- 1\"",0,"db","A.:",null,{"$f":"ROUND( D$520*G520,0 )","v":0}]
[{"$nulls":5},"D.:",null,null,{"$f":"ROUND( D$520*G521,0 )","v":0}]
[{"$nulls":5},"G.:",null,null,null,{"$f":"ROUND( D$520*G522,2 )","v":0}]
[]
[]
[null,null,"Műanyag öntözőcső idomai földárokba szerelve,"]
[null,null,"földmunka költsége nélkül, gyorskötő csatlakozással,"]
[null,null,"GANZ-HYDRO, PIPELIFE gyártmányú, KPE külsőmenetes gyorskötő,"]
[null,null,"PN 10 bar"]
[33,"25-419-015-065-26-32336","átm. 50x1 1/2\" 01593",0,"db","A.:",null,{"$f":"ROUND( D$529*G529,0 )","v":0}]
[{"$nulls":5},"D.:",null,null,{"$f":"ROUND( D$529*G530,0 )","v":0}]
[{"$nulls":5},"G.:",null,null,null,{"$f":"ROUND( D$529*G531,2 )","v":0}]
[]
[]
[null,null,"Golyóscsap, teljes átömlésű,"]
[null,null,"sárgarézből, nikkelezett kivitelben, felszerelve,"]
[null,null,"EFFEBI-Aster típusú, PN 40, 100°C-ig,"]
[null,null,"0802 kézikarral, egyenes kivitelben, külső-belső menetes"]
[34,"82-121-205-005-34-37111","1 1/4\"",0,"db","A.:",null,{"$f":"ROUND( D$538*G538,0 )","v":0}]
[{"$nulls":5},"D.:",null,null,{"$f":"ROUND( D$538*G539,0 )","v":0}]
[{"$nulls":5},"G.:",null,null,null,{"$f":"ROUND( D$538*G540,2 )","v":0}]
[]
[]
[null,null,"Műanyag akna építése gumigyűrűs toktömítéssel,"]
[null,null,"PIPELIFE KGUR típusú, eltérő magasságú (bukó) tisztítónyílás, KG-PVC anyagú, kemény polietilén fedlappal. Terhelhetőség: 3 t, felszállócső: 200 mm hosszú, kiömlőcsonk átm. 160 mm,"]
[null,null,"beömlés: átm. 125 mm"]
[35,"53-485-001-215-02-33330","12/20/16/15 magasság H: 1500 mm",0,"db","A.:",null,{"$f":"ROUND( D$546*G546,0 )","v":0}]
[{"$nulls":5},"D.:",null,null,{"$f":"ROUND( D$546*G547,0 )","v":0}]
[{"$nulls":5},"G.:",null,null,null,{"$f":"ROUND( D$546*G548,2 )","v":0}]
[]
[]
[null,null,"Földvisszatöltés munkagödörbe, vagy munkaárokba, tömörítés"]
[null,null,"nélkül, réteges elterítéssel, I-IV osztályú talajban,"]
[null,null,"gépi erővel, az anyag súlypontja 10,0 m-en belül,"]
[null,null,"a vezetéket, műtárgyat környező"]
[36,"21-319-003-000-00-00000","50 cm-en túli szelvényrészben",0,"m3","A.:",null,{"$f":"ROUND( D$555*G555,2 )","v":0}]
[{"$nulls":5},"D.:",null,null,{"$f":"ROUND( D$555*G556,0 )","v":0}]
[{"$nulls":5},"G.:",null,null,null,{"$f":"ROUND( D$555*G557,0 )","v":0}]
[]
[]
[null,null,"Tömörítés bármely tömörítési osztályban, gépi erővel,"]
[null,null,"nagy felületen"]
[37,"21-810-002-000-00-00000","90% tömörségi fokra",0,"m3","A.:",null,{"$f":"ROUND( D$562*G562,0 )","v":0}]
[{"$nulls":5},"D.:",null,null,{"$f":"ROUND( D$562*G563,2 )","v":0}]
[{"$nulls":5},"G.:",null,null,null,{"$f":"ROUND( D$562*G564,0 )","v":0}]
[]
[]
[null,null,"Munkaárok földkiemelése közmű nélküli területen, gépi erővel,"]
[null,null,"kiegészítő kézi munkával, bármely konzisztenciájú I-IV. osztályú"]
[null,null,"talajban, a kitermelt föld depóniába vagy járműre rakásával,"]
[null,null,"dúcolás nélkül"]
[38,"21-315-031-000-00-00000","3,0 m2 szelvényig",0,"m3","A.:",null,{"$f":"ROUND( D$571*G571,2 )","v":0}]
[{"$nulls":5},"D.:",null,null,{"$f":"ROUND( D$571*G572,0 )","v":0}]
[{"$nulls":5},"G.:",null,null,null,{"$f":"ROUND( D$571*G573,0 )","v":0}]
[]
[]
[null,null,"Víz, - csatornaszerelési munkák próbái,"]
[null,null,"vízvezetéki lefolyórendszer tömörségi próbája"]
[39,"82-999-111-001-00-00000",null,0,"óra","A.:",null,{"$f":"ROUND( D$578*G578,2 )","v":0}]
[{"$nulls":5},"D.:",null,null,{"$f":"ROUND( D$578*G579,0 )","v":0}]
[{"$nulls":5},"G.:",null,null,null,{"$f":"ROUND( D$578*G580,2 )","v":0}]
[]
[]
[null,null,"Víz, - csatornaszerelési munkák próbái,"]
[null,null,"vízvezetéki nyomórendszer nyomáspróbája"]
[40,"82-999-111-002-00-00000",null,0,"óra","A.:",null,{"$f":"ROUND( D$585*G585,2 )","v":0}]
[{"$nulls":5},"D.:",null,null,{"$f":"ROUND( D$585*G586,0 )","v":0}]
[{"$nulls":5},"G.:",null,null,null,{"$f":"ROUND( D$585*G587,2 )","v":0}]
[]
[]
[{"$nulls":7},{"$f":"ROUND( SUM(H243:H589),0 )","v":0},{"$f":"ROUND( SUM(I243:I589),0 )","v":0},{"$f":"ROUND( SUM(J243:J589),0 )","v":0}]
["Közműellátás"]
[]
[null,null,"Tokos lefolyóvezeték műanyagból,"]
[null,null,"gumigyűrűs kötésekkel, szakaszos tömörségi próbával,"]
[null,null,"földárokban szerelve, csőidomokkal és csőtartókkal együtt."]
[null,null,"Anyaga: PVC-KG"]
[null,null,"PIPELIFE típusú,"]
[1,"M-81-241-113-200-01-92011","átm. 200 x 4,9 mm KGEM200/1M-S",{"$f":"ROUND( 72,2 )","v":72},"m","A.:",null,{"$f":"ROUND( D$598*G598,0 )","v":0}]
[{"$nulls":5},"D.:",null,null,{"$f":"ROUND( D$598*G599,0 )","v":0}]
[{"$nulls":5},"G.:",null,null,null,{"$f":"ROUND( D$598*G600,2 )","v":0}]
[]
[]
[null,null,"Műanyag nyomócső földárokba szerelve,"]
[null,null,"földmunka költsége nélkül, hegesztett kötésekkel,"]
[null,null,"PIPELIFE gyártmányú, PE víznyomócső, PE 80 anyagú, MSz EN 12201"]
[null,null,"SDR 11, PN 12,5 bar"]
[2,"54-331-008-070-02-31621","63 x 5,8 mm 80VSDR11063EN100K",{"$f":"ROUND( 50,2 )","v":50},"m","A.:",null,{"$f":"ROUND( D$607*G607,0 )","v":0}]
[{"$nulls":5},"D.:",null,null,{"$f":"ROUND( D$607*G608,0 )","v":0}]
[{"$nulls":5},"G.:",null,null,null,{"$f":"ROUND( D$607*G609,0 )","v":0}]
[]
[]
[null,null,"Műanyag nyomócső földárokba szerelve,"]
[null,null,"földmunka költsége nélkül, hegesztett kötésekkel,"]
[null,null,"PIPELIFE gyártmányú, PE víznyomócső, PE 80 anyagú, MSz EN 12201"]
[null,null,"SDR 11, PN 12,5 bar"]
[3,"54-331-005-040-02-31621","32 x 3,0 mm 80VSDR11032EN200K",{"$f":"ROUND( 90,2 )","v":90},"m","A.:",null,{"$f":"ROUND( D$616*G616,0 )","v":0}]
[{"$nulls":5},"D.:",null,null,{"$f":"ROUND( D$616*G617,0 )","v":0}]
[{"$nulls":5},"G.:",null,null,null,{"$f":"ROUND( D$616*G618,0 )","v":0}]
[]
[]
[null,null,"Tokos lefolyóvezeték műanyagból,"]
[null,null,"gumigyűrűs kötésekkel, szakaszos tömörségi próbával,"]
[null,null,"földárokban, Védőcsőként szerelve"]
[null,null,"Anyaga: PVC-KG"]
[null,null,"PIPELIFE típusú,"]
[4,"M-81-241-115-315-01-92011","átm. 315 x 7,7 mm KGEM315/1M-S",{"$f":"ROUND( 6,2 )","v":6},"m","A.:",null,{"$f":"ROUND( D$626*G626,0 )","v":0}]
[{"$nulls":5},"D.:",null,null,{"$f":"ROUND( D$626*G627,0 )","v":0}]
[{"$nulls":5},"G.:",null,null,null,{"$f":"ROUND( D$626*G628,2 )","v":0}]
[]
[]
[null,null,"Csatlakozás a meglévő szennvíhálózatra"]
[5,"M-66-210-057-001-90-00110","Csatlakozás a meglévő szennvíhálózatra",{"$f":"ROUND( 2,2 )","v":2},"db","A.:",null,{"$f":"ROUND( D$632*G632,0 )","v":0}]
[{"$nulls":5},"D.:",null,null,{"$f":"ROUND( D$632*G633,0 )","v":0}]
[{"$nulls":5},"G.:",null,null,null,{"$f":"ROUND( D$632*G634,2 )","v":0}]
[]
[]
[null,null,"Csatlakozás a meglévő vízhálózatra"]
[6,"M-66-210-057-001-90-00110","Csatlakozás a meglévő szennvíhálózatra",{"$f":"ROUND( 2,2 )","v":2},"db","A.:",null,{"$f":"ROUND( D$638*G638,0 )","v":0}]
[{"$nulls":5},"D.:",null,null,{"$f":"ROUND( D$638*G639,0 )","v":0}]
[{"$nulls":5},"G.:",null,null,null,{"$f":"ROUND( D$638*G640,2 )","v":0}]
[]
[]
[null,null,"Tokos lefolyóvezeték műanyagból,"]
[null,null,"gumigyűrűs kötésekkel, szakaszos tömörségi próbával,"]
[null,null,"földárokban szerelve, csőidomokkal és csőtartókkal együtt."]
[null,null,"Anyaga: PVC-KG, védőcsőként szerelve"]
[null,null,"PIPELIFE típusú,"]
[7,"M-81-241-110-110-01-92011","átm. 110 x 3,2 mm KGEM110/1M-S",{"$f":"ROUND( 9,2 )","v":9},"m","A.:",null,{"$f":"ROUND( D$648*G648,0 )","v":0}]
[{"$nulls":5},"D.:",null,null,{"$f":"ROUND( D$648*G649,0 )","v":0}]
[{"$nulls":5},"G.:",null,null,null,{"$f":"ROUND( D$648*G650,2 )","v":0}]
[]
[]
[null,null,"Tokos lefolyóvezeték műanyagból,"]
[null,null,"gumigyűrűs kötésekkel, szakaszos tömörségi próbával."]
[null,null,"Anyaga: PVC, MSZ 8000-4: 1981"]
[null,null,"Nyomásfokozat: P1,"]
[null,null,"PIPELIFE típusú,"]
[null,null,"földárokban szerelve, csőidomokkal és csőtartókkal együtt."]
[null,null,"Anyaga: PVC-KG, védőcsőként szerelve"]
[8,"M-81-231-107-063-01-91011","átm. 63 x 1,9 mm KAEM063/1M",{"$f":"ROUND( 6,2 )","v":6},"m","A.:",null,{"$f":"ROUND( D$660*G660,0 )","v":0}]
[{"$nulls":5},"D.:",null,null,{"$f":"ROUND( D$660*G661,0 )","v":0}]
[{"$nulls":5},"G.:",null,null,null,{"$f":"ROUND( D$660*G662,2 )","v":0}]
[]
[]
[null,null,"Tokos lefolyóvezeték műanyagból,"]
[null,null,"gumigyűrűs kötésekkel, szakaszos tömörségi próbával,"]
[null,null,"épületen belül földárokba szerelve, de földmunka nélkül,"]
[null,null,"a külön tételben kiírt csőidomok ára nélkül."]
[null,null,"Anyaga: PVC, MSZ 8000-4: 1981"]
[null,null,"Nyomásfokozat: P1,"]
[null,null,"PIPELIFE típusú,"]
[null,null,"homokágy készítéssel, védőtéglázással"]
[9,"81-231-430-110-01-91011","átm. 110 x 2,2 mm KAEM110/1M",{"$f":"ROUND( 24,2 )","v":24},"m","A.:",null,{"$f":"ROUND( D$673*G673,0 )","v":0}]
[{"$nulls":5},"D.:",null,null,{"$f":"ROUND( D$673*G674,0 )","v":0}]
[{"$nulls":5},"G.:",null,null,null,{"$f":"ROUND( D$673*G675,2 )","v":0}]
[]
[]
[null,null,"PVC anyagú, bordázott, perforált kivitelű szivárgócső fektetése"]
[null,null,"a munkaárok egyidejű készítésével,"]
[null,null,"1,50 m mélységig,"]
[null,null,"I-III. osztályú talajban"]
[10,"22-513-004-004-30-10110","DN 100",{"$f":"ROUND( 10,2 )","v":10},"m","A.:",null,{"$f":"ROUND( D$682*G682,0 )","v":0}]
[{"$nulls":5},"D.:",null,null,{"$f":"ROUND( D$682*G683,0 )","v":0}]
[{"$nulls":5},"G.:",null,null,null,{"$f":"ROUND( D$682*G684,0 )","v":0}]
[]
[]
[null,null,"Tervezett szennyvíz tisztító akna Wavin vizsgáló akna: Fenék elem: CAFIC2113, "]
[null,null,"Aknafalcső: CAFC1231; Öv aknafedél:CAO60K"]
[null,null,"Elhelyezve, homok és kavicságyban, szennyvízhálózatra kötve."]
[11,"M-53-610-012-320-03-34192","Wavin vizsgáló akna",{"$f":"ROUND( 2,2 )","v":2},"db","A.:",null,{"$f":"ROUND( D$690*G690,0 )","v":0}]
[{"$nulls":5},"D.:",null,null,{"$f":"ROUND( D$690*G691,0 )","v":0}]
[{"$nulls":5},"G.:",null,null,null,{"$f":"ROUND( D$690*G692,2 )","v":0}]
[]
[]
[null,null,"Tervezett szennyvíz tisztító akna"]
[null,null,"Wavin Tegra 600, DN200"]
[null,null,"oldalbekötő akna, PP "]
[null,null,"aknafalcső, A/1 tip. 3 t "]
[null,null,"terehelhetőségű akna fedlappal"]
[null,null,"Alsó létra tartóval"]
[12,"M-53-610-012-320-03-34192","Wavin Tegra mászható akna",{"$f":"ROUND( 3,2 )","v":3},"db","A.:",null,{"$f":"ROUND( D$701*G701,0 )","v":0}]
[{"$nulls":5},"D.:",null,null,{"$f":"ROUND( D$701*G702,0 )","v":0}]
[{"$nulls":5},"G.:",null,null,null,{"$f":"ROUND( D$701*G703,2 )","v":0}]
[]
[]
[null,null,"Hawle NR 2600 házi főelzáró PE csőhöz, DN50"]
[null,null,"Beépítési készlettel L=1,30 m, csapszárhosszabító"]
[13,"M-54-401-009-009-01-81132","Hawle NR 2600 házi főelzáró PE csőhöz, DN32",{"$f":"ROUND( 2,2 )","v":2},"db","A.:",null,{"$f":"ROUND( D$708*G708,0 )","v":0}]
[{"$nulls":5},"D.:",null,null,{"$f":"ROUND( D$708*G709,0 )","v":0}]
[{"$nulls":5},"G.:",null,null,null,{"$f":"ROUND( D$708*G710,2 )","v":0}]
[]
[]
[null,null,"Hawle NR 2600 házi főelzáró PE csőhöz, DN32"]
[null,null,"Beépítési készlettel L=1,30 m, csapszárhosszabító"]
[14,"M-54-401-009-009-01-81132","Hawle NR 2600 házi főelzáró PE csőhöz, DN32",{"$f":"ROUND( 1,2 )","v":1},"db","A.:",null,{"$f":"ROUND( D$715*G715,0 )","v":0}]
[{"$nulls":5},"D.:",null,null,{"$f":"ROUND( D$715*G716,0 )","v":0}]
[{"$nulls":5},"G.:",null,null,null,{"$f":"ROUND( D$715*G717,2 )","v":0}]
[]
[]
[null,null,"Műanyag nyomócső földárokba szerelve,"]
[null,null,"földmunka költsége nélkül, hegesztett kötésekkel,"]
[null,null,"PIPELIFE gyártmányú, PE víznyomócső, PE 80 anyagú, MSz EN 12201"]
[null,null,"SDR 11, PN 12,5 bar"]
[15,"54-331-004-030-02-31621","25 x 2,3 mm 80VSDR11025EN300K",{"$f":"ROUND( 100,2 )","v":100},"m","A.:",null,{"$f":"ROUND( D$724*G724,0 )","v":0}]
[{"$nulls":5},"D.:",null,null,{"$f":"ROUND( D$724*G725,0 )","v":0}]
[{"$nulls":5},"G.:",null,null,null,{"$f":"ROUND( D$724*G726,0 )","v":0}]
[]
[]
[null,null,"Nyomvonaljelző elhelyezése műanyagcsövek fölé 6 cm széles"]
[null,null,"sárga fóliával"]
[16,"54-646-001-001-03-10041","PLASTOVINIL típusú,",{"$f":"ROUND( 100,2 )","v":100},"m","A.:",null,{"$f":"ROUND( D$731*G731,0 )","v":0}]
[{"$nulls":5},"D.:",null,null,{"$f":"ROUND( D$731*G732,0 )","v":0}]
[{"$nulls":5},"G.:",null,null,null,{"$f":"ROUND( D$731*G733,2 )","v":0}]
[]
[]
[null,null,"Műanyag nyomócső idomai földárokba szerelve,"]
[null,null,"földmunka költsége nélkül, hegesztett kötésekkel,"]
[null,null,"PIPELIFE gyártmányú, PE könyökidom, PE 80 vagy 100 anyagú, simavégű,"]
[null,null,"SDR 11, 90°-os"]
[17,"54-336-004-030-02-42180","átm. 25 mm PEKO025-90FSDR11",{"$f":"ROUND( 4,2 )","v":4},"db","A.:",null,{"$f":"ROUND( D$740*G740,0 )","v":0}]
[{"$nulls":5},"D.:",null,null,{"$f":"ROUND( D$740*G741,0 )","v":0}]
[{"$nulls":5},"G.:",null,null,null,{"$f":"ROUND( D$740*G742,0 )","v":0}]
[]
[]
[null,null,"Műanyag nyomócső idomai földárokba szerelve,"]
[null,null,"földmunka költsége nélkül, hegesztett kötésekkel,"]
[null,null,"PIPELIFE gyártmányú, PE tokos-menetes horganyzott acél-összekötőidom"]
[18,"54-336-004-033-02-80320","átm. 25 x 3/4\" H TPEMGA25X3/4\"H",{"$f":"ROUND( 2,2 )","v":2},"db","A.:",null,{"$f":"ROUND( D$748*G748,0 )","v":0}]
[{"$nulls":5},"D.:",null,null,{"$f":"ROUND( D$748*G749,0 )","v":0}]
[{"$nulls":5},"G.:",null,null,null,{"$f":"ROUND( D$748*G750,0 )","v":0}]
[]
[]
[null,null,"Tokos lefolyóvezeték műanyagból,"]
[null,null,"Anyaga: PVC, MSZ 8000-4: 1981"]
[null,null,"Nyomásfokozat: P1,"]
[null,null,"PIPELIFE típusú,"]
[null,null,"homokágy készítéssel, védőcsőként szerelve"]
[19,"M-81-231-427-063-01-91011","átm. 63 x 1,9 mm KAEM063/1M",{"$f":"ROUND( 6,2 )","v":6},"m","A.:",null,{"$f":"ROUND( D$758*G758,0 )","v":0}]
[{"$nulls":5},"D.:",null,null,{"$f":"ROUND( D$758*G759,0 )","v":0}]
[{"$nulls":5},"G.:",null,null,null,{"$f":"ROUND( D$758*G760,2 )","v":0}]
[]
[]
[null,null,"Álló ivókút közösségi kiv."]
[null,null,"1 mm vtg rozsdamentes acélból,"]
[null,null,"nyomógombos ivókútfejjel,"]
[null,null,"d 345 mm, 800 mm magas,"]
[null,null,"VANDÁLBIZTOS KIVITELBEN."]
[20,"M-82-202-111-001-55-50522","KORK-019",{"$f":"ROUND( 2,2 )","v":2},"db","A.:",null,{"$f":"ROUND( D$768*G768,0 )","v":0}]
[{"$nulls":5},"D.:",null,null,{"$f":"ROUND( D$768*G769,0 )","v":0}]
[{"$nulls":5},"G.:",null,null,null,{"$f":"ROUND( D$768*G770,2 )","v":0}]
[]
[]
[null,null,"Alap vagy szerelőbeton készítése aknához,"]
[null,null,"Előírt összetételű betonból. Termékszabvány: MSz EN 206-1"]
[null,null,"Nyomószilárdsági osztály: C12-24/FN-XT4-XF3."]
[21,"M-53-510-002-108-90-02008","C12-24/FN",{"$f":"ROUND( 0.4,2 )","v":0.4},"m3","A.:",null,{"$f":"ROUND( D$776*G776,0 )","v":0}]
[{"$nulls":5},"D.:",null,null,{"$f":"ROUND( D$776*G777,0 )","v":0}]
[{"$nulls":5},"G.:",null,null,null,{"$f":"ROUND( D$776*G778,0 )","v":0}]
[]
[]
[null,null,"Átmeneti golyós vízfőcsap, (menetes kötések külön tételben"]
[null,null,"történő elszámolásával), felszerelve,"]
[null,null,"sárgarézből, golyós kivitelben,"]
[null,null,"MOFÉM AHA típusú,"]
[22,"54-406-003-003-24-15213","3/4\"-os",{"$f":"ROUND( 2,2 )","v":2},"db","A.:",null,{"$f":"ROUND( D$785*G785,0 )","v":0}]
[{"$nulls":5},"D.:",null,null,{"$f":"ROUND( D$785*G786,0 )","v":0}]
[{"$nulls":5},"G.:",null,null,null,{"$f":"ROUND( D$785*G787,2 )","v":0}]
[]
[]
[null,null,"Beépítési készlet szerelése főcsapokhoz,"]
[null,null,"CS-150 csapszekrénnyel"]
[23,"54-436-008-150-04-34001","DN 65 -ig",{"$f":"ROUND( 1,2 )","v":1},"db","A.:",null,{"$f":"ROUND( D$792*G792,0 )","v":0}]
[{"$nulls":5},"D.:",null,null,{"$f":"ROUND( D$792*G793,0 )","v":0}]
[{"$nulls":5},"G.:",null,null,null,{"$f":"ROUND( D$792*G794,2 )","v":0}]
[]
[]
[null,null,"Munkaárok földkiemelése közmű nélküli területen, gépi erővel,"]
[null,null,"kiegészítő kézi munkával, bármely konzisztenciájú I-IV. osztályú"]
[null,null,"talajban, a kitermelt föld depóniába vagy járműre rakásával,"]
[null,null,"dúcolás nélkül"]
[24,"21-315-031-000-00-00000","3,0 m2 szelvényig",{"$f":"ROUND( 100,2 )","v":100},"m3","A.:",null,{"$f":"ROUND( D$801*G801,2 )","v":0}]
[{"$nulls":5},"D.:",null,null,{"$f":"ROUND( D$801*G802,0 )","v":0}]
[{"$nulls":5},"G.:",null,null,null,{"$f":"ROUND( D$801*G803,0 )","v":0}]
[]
[]
[null,null,"Munkaárok földkiemelése közművesített területen, kézi erővel,"]
[null,null,"bármely konzisztenciájú, I-IV osztályú talajban, a kitermelt föld"]
[null,null,"depóniába vagy járműre rakásával,"]
[null,null,"dúcolás nélkül,"]
[null,null,"2,0 m2 szelvényig"]
[25,"21-315-002-000-00-00000","III. osztályú talajban",{"$f":"ROUND( 10,2 )","v":10},"m3","A.:",null,{"$f":"ROUND( D$811*G811,2 )","v":0}]
[{"$nulls":5},"D.:",null,null,{"$f":"ROUND( D$811*G812,0 )","v":0}]
[{"$nulls":5},"G.:",null,null,null,{"$f":"ROUND( D$811*G813,2 )","v":0}]
[]
[]
[null,null,"Földvisszatöltés munkagödörbe, vagy munkaárokba, tömörítés"]
[null,null,"nélkül, réteges elterítéssel, I-IV osztályú talajban,"]
[null,null,"kézi erővel, az anyag súlypontja karoláson belül,"]
[null,null,"a vezetéket környező"]
[26,"21-319-002-000-00-00000","50 cm-en túli szelvényrészben",{"$f":"ROUND( 10,2 )","v":10},"m3","A.:",null,{"$f":"ROUND( D$820*G820,2 )","v":0}]
[{"$nulls":5},"D.:",null,null,{"$f":"ROUND( D$820*G821,0 )","v":0}]
[{"$nulls":5},"G.:",null,null,null,{"$f":"ROUND( D$820*G822,2 )","v":0}]
[]
[]
[null,null,"Földvisszatöltés munkagödörbe, vagy munkaárokba, tömörítés"]
[null,null,"nélkül, réteges elterítéssel, I-IV osztályú talajban,"]
[null,null,"gépi erővel, az anyag súlypontja 10,0 m-en belül,"]
[null,null,"a vezetéket, műtárgyat környező"]
[27,"21-319-003-000-00-00000","50 cm-en túli szelvényrészben",{"$f":"ROUND( 100,2 )","v":100},"m3","A.:",null,{"$f":"ROUND( D$829*G829,2 )","v":0}]
[{"$nulls":5},"D.:",null,null,{"$f":"ROUND( D$829*G830,0 )","v":0}]
[{"$nulls":5},"G.:",null,null,null,{"$f":"ROUND( D$829*G831,0 )","v":0}]
[]
[]
[null,null,"Tömörítés bármely tömörítési osztályban, gépi erővel,"]
[null,null,"nagy felületen"]
[28,"21-810-002-000-00-00000","90% tömörségi fokra",{"$f":"ROUND( 110,0 )","v":110},"m3","A.:",null,{"$f":"ROUND( D$836*G836,0 )","v":0}]
[{"$nulls":5},"D.:",null,null,{"$f":"ROUND( D$836*G837,2 )","v":0}]
[{"$nulls":5},"G.:",null,null,null,{"$f":"ROUND( D$836*G838,0 )","v":0}]
[]
[]
[null,null,"Víz, - csatornaszerelési munkák próbái,"]
[null,null,"vízvezetéki lefolyórendszer tömörségi próbája"]
[29,"82-999-111-001-00-00000",null,{"$f":"ROUND( 4,2 )","v":4},"óra","A.:",null,{"$f":"ROUND( D$843*G843,2 )","v":0}]
[{"$nulls":5},"D.:",null,null,{"$f":"ROUND( D$843*G844,0 )","v":0}]
[{"$nulls":5},"G.:",null,null,null,{"$f":"ROUND( D$843*G845,2 )","v":0}]
[]
[]
[null,null,"Víz, - csatornaszerelési munkák próbái,"]
[null,null,"vízvezetéki nyomórendszer nyomáspróbája"]
[30,"82-999-111-002-00-00000",null,{"$f":"ROUND( 4,2 )","v":4},"óra","A.:",null,{"$f":"ROUND( D$850*G850,2 )","v":0}]
[{"$nulls":5},"D.:",null,null,{"$f":"ROUND( D$850*G851,0 )","v":0}]
[{"$nulls":5},"G.:",null,null,null,{"$f":"ROUND( D$850*G852,2 )","v":0}]
[]
[]
[null,null,"Víz, - csatornaszerelési munkák próbái,"]
[null,null,"hatósági nyomáspróba"]
[31,"82-999-111-003-00-00000",null,{"$f":"ROUND( 4,2 )","v":4},"óra","A.:",null,{"$f":"ROUND( D$857*G857,2 )","v":0}]
[{"$nulls":5},"D.:",null,null,{"$f":"ROUND( D$857*G858,0 )","v":0}]
[{"$nulls":5},"G.:",null,null,null,{"$f":"ROUND( D$857*G859,2 )","v":0}]
[]
[]
[null,null,"Víz, - csatornaszerelési munkák átadás-átvételi"]
[null,null,"eljárásával kapcsolatos költségek"]
[null,null,"átadási dokumentáció készítés"]
[32,"82-999-121-001-00-00000",null,{"$f":"ROUND( 4,2 )","v":4},"óra","A.:",null,{"$f":"ROUND( D$865*G865,2 )","v":0}]
[{"$nulls":5},"D.:",null,null,{"$f":"ROUND( D$865*G866,0 )","v":0}]
[{"$nulls":5},"G.:",null,null,null,{"$f":"ROUND( D$865*G867,2 )","v":0}]
[]
[]
[null,null,"Víz, - csatornaszerelési munkák átadás-átvételi"]
[null,null,"eljárásával kapcsolatos költségek"]
[null,null,"átadási eljárás lefolytatása"]
[33,"82-999-121-002-00-00000",null,{"$f":"ROUND( 4,2 )","v":4},"óra","A.:",null,{"$f":"ROUND( D$873*G873,2 )","v":0}]
[{"$nulls":5},"D.:",null,null,{"$f":"ROUND( D$873*G874,0 )","v":0}]
[{"$nulls":5},"G.:",null,null,null,{"$f":"ROUND( D$873*G875,2 )","v":0}]
[]
[]
[null,null,"Víz, - csatornaszerelési munkák átadás-átvételi"]
[null,null,"eljárásával kapcsolatos költségek"]
[null,null,"kezelési utasítás készítés"]
[34,"82-999-121-003-00-00000",null,{"$f":"ROUND( 4,2 )","v":4},"óra","A.:",null,{"$f":"ROUND( D$881*G881,2 )","v":0}]
[{"$nulls":5},"D.:",null,null,{"$f":"ROUND( D$881*G882,0 )","v":0}]
[{"$nulls":5},"G.:",null,null,null,{"$f":"ROUND( D$881*G883,2 )","v":0}]
[]
[]
[null,null,"Víz, - csatornaszerelési munkák átadás-átvételi"]
[null,null,"eljárásával kapcsolatos költségek"]
[null,null,"kezelésre vonatkozó kioktatás"]
[35,"82-999-121-004-00-00000",null,{"$f":"ROUND( 4,2 )","v":4},"óra","A.:",null,{"$f":"ROUND( D$889*G889,2 )","v":0}]
[{"$nulls":5},"D.:",null,null,{"$f":"ROUND( D$889*G890,0 )","v":0}]
[{"$nulls":5},"G.:",null,null,null,{"$f":"ROUND( D$889*G891,2 )","v":0}]
[]
[]
[{"$nulls":7},{"$f":"ROUND( SUM(H592:H893),0 )","v":0},{"$f":"ROUND( SUM(I592:I893),0 )","v":0},{"$f":"ROUND( SUM(J592:J893),0 )","v":0}]
["Zuhanyzó víz ellátása szennvíz elvezetése"]
[]
[null,null,"Rozsdamentes acél csővezeték"]
[null,null,"préskötéses csatlakozásokkal, ivóviz, gáz és technológiai"]
[null,null,"alkalmazásra,"]
[null,null,"külön tételben kiírt préskötéses idomokkal és tartószerkezettel,"]
[null,null,"szabadon, horonyba vagy padlócsatornába szerelve, szakaszos"]
[null,null,"nyomáspróbával (de a szerelőkőműves munkák nélkül)."]
[null,null,"Anyaga: DIN EN 10088 szerinti 1,4401 anyagminőségű"]
[null,null,"rozsdamentes acél, 2% feletti molibdén tartalommal."]
[null,null,"GEBERIT MAPRESS INOX (Mapress E-Stahl) típusú,"]
[1,"81-431-002-022-11-21101","átm. 22,0 x 1,5 mm",0,"m","A.:",null,{"$f":"ROUND( D$906*G906,0 )","v":0}]
[{"$nulls":5},"D.:",null,null,{"$f":"ROUND( D$906*G907,0 )","v":0}]
[{"$nulls":5},"G.:",null,null,null,{"$f":"ROUND( D$906*G908,2 )","v":0}]
[]
[]
[null,null,"Vízszűrő,"]
[null,null,"menetes kivitelben, felszerelve,"]
[null,null,"FF06 típusú, öblíthető"]
[2,"82-121-204-004-42-38101","1\" FF06-1AA",0,"db","A.:",null,{"$f":"ROUND( D$914*G914,0 )","v":0}]
[{"$nulls":5},"D.:",null,null,{"$f":"ROUND( D$914*G915,0 )","v":0}]
[{"$nulls":5},"G.:",null,null,null,{"$f":"ROUND( D$914*G916,2 )","v":0}]
[]
[]
[null,null,"B&K QK 150 nyomógombos zuhanyfej"]
[3,"M-82-215-311-011-11-11351","B&K QK 150 nyomógombos zuhanyfej",0,"db","A.:",null,{"$f":"ROUND( D$920*G920,0 )","v":0}]
[{"$nulls":5},"D.:",null,null,{"$f":"ROUND( D$920*G921,0 )","v":0}]
[{"$nulls":5},"G.:",null,null,null,{"$f":"ROUND( D$920*G922,2 )","v":0}]
[]
[]
[null,null,"B&K Aqua751, vandálbiztos zuhany fej, felszerelve,"]
[null,null,"kézizuhany nélkül"]
[4,"M-82-251-701-001-55-11701","B&K Aqua751, vandálbiztos zuhany fej",0,"db","A.:",null,{"$f":"ROUND( D$927*G927,0 )","v":0}]
[{"$nulls":5},"D.:",null,null,{"$f":"ROUND( D$927*G928,0 )","v":0}]
[{"$nulls":5},"G.:",null,null,null,{"$f":"ROUND( D$927*G929,2 )","v":0}]
[]
[]
[null,null,"Termosztatikus keverőszelep,"]
[null,null,"felszerelve,"]
[null,null,"ESBE típusú,"]
[5,"M-84-431-154-004-04-11461","3/4\" 1297125139",0,"db","A.:",null,{"$f":"ROUND( D$935*G935,0 )","v":0}]
[{"$nulls":5},"D.:",null,null,{"$f":"ROUND( D$935*G936,0 )","v":0}]
[{"$nulls":5},"G.:",null,null,null,{"$f":"ROUND( D$935*G937,2 )","v":0}]
[]
[]
[null,null,"Napkollektor Grunpower 250 Pressure Turbo, 200 l"]
[null,null,"22 db csővel, 450 kg "]
[null,null,"ferde tetőre telepítve, rögzítőkkel "]
[6,"M-84-401-202-016-04-11201","Napkollektor Grunpower 250",0,"db","A.:",null,{"$f":"ROUND( D$943*G943,0 )","v":0}]
[{"$nulls":5},"D.:",null,null,{"$f":"ROUND( D$943*G944,0 )","v":0}]
[{"$nulls":5},"G.:",null,null,null,{"$f":"ROUND( D$943*G945,2 )","v":0}]
[]
[]
[null,null,"Golyóscsap, teljes átömlésű,"]
[null,null,"sárgarézből, nikkelezett kivitelben, felszerelve,"]
[null,null,"EFFEBI-Aster típusú, PN 40, 100°C-ig,"]
[null,null,"0822 fogantyúval, egyenes kivitelben, külső-belső menetes"]
[7,"82-121-204-004-34-37113","1\"",0,"db","A.:",null,{"$f":"ROUND( D$952*G952,0 )","v":0}]
[{"$nulls":5},"D.:",null,null,{"$f":"ROUND( D$952*G953,0 )","v":0}]
[{"$nulls":5},"G.:",null,null,null,{"$f":"ROUND( D$952*G954,2 )","v":0}]
[]
[]
[null,null,"Gebo drain, vandálbiztos padló összefolyó 21.6220"]
[8,"M-82-281-721-530-41-00256","Gebo drain, vandálbiztos padló összefolyó 21.6220",0,"db","A.:",null,{"$f":"ROUND( D$958*G958,0 )","v":0}]
[{"$nulls":5},"D.:",null,null,{"$f":"ROUND( D$958*G959,0 )","v":0}]
[{"$nulls":5},"G.:",null,null,null,{"$f":"ROUND( D$958*G960,2 )","v":0}]
[]
[]
[null,null,"Tokos lefolyóvezeték műanyagból,"]
[null,null,"gumigyűrűs kötésekkel, szakaszos tömörségi próbával,"]
[null,null,"szabadon szerelve, csőidomokkal és csőtartókkal együtt."]
[null,null,"Anyaga: PVC-KG"]
[null,null,"PIPELIFE típusú,"]
[9,"81-241-110-110-01-92011","átm. 110 x 3,2 mm KGEM110/1M-S",0,"m","A.:",null,{"$f":"ROUND( D$968*G968,0 )","v":0}]
[{"$nulls":5},"D.:",null,null,{"$f":"ROUND( D$968*G969,0 )","v":0}]
[{"$nulls":5},"G.:",null,null,null,{"$f":"ROUND( D$968*G970,2 )","v":0}]
[]
[]
[null,null,"Tokos lefolyóvezeték műanyagból,"]
[null,null,"gumigyűrűs kötésekkel, szakaszos tömörségi próbával."]
[null,null,"Anyaga: PVC, MSZ 8000-4: 1981"]
[null,null,"Nyomásfokozat: P1,"]
[null,null,"PIPELIFE típusú,"]
[null,null,"szabadon, horonyba vagy padlócsatornába szerelve, tartószerkezetekkel, műanyag csőidomokkal"]
[10,"81-231-107-063-01-91011","átm. 63 x 1,9 mm KAEM063/1M",0,"m","A.:",null,{"$f":"ROUND( D$979*G979,0 )","v":0}]
[{"$nulls":5},"D.:",null,null,{"$f":"ROUND( D$979*G980,0 )","v":0}]
[{"$nulls":5},"G.:",null,null,null,{"$f":"ROUND( D$979*G981,2 )","v":0}]
[]
[]
[null,null,"Golyóscsap, teljes átömlésű,"]
[null,null,"sárgarézből, nikkelezett kivitelben, felszerelve,"]
[null,null,"EFFEBI-Aster típusú, PN 40, 100°C-ig,"]
[null,null,"0822 fogantyúval, egyenes kivitelben, külső-belső menetes"]
[11,"82-121-203-003-34-37113","3/4\"",0,"db","A.:",null,{"$f":"ROUND( D$988*G988,0 )","v":0}]
[{"$nulls":5},"D.:",null,null,{"$f":"ROUND( D$988*G989,0 )","v":0}]
[{"$nulls":5},"G.:",null,null,null,{"$f":"ROUND( D$988*G990,2 )","v":0}]
[]
[]
[null,null,"Épületgépészeti és ipari csővezeték szigetelése szintetikus gumi,"]
[null,null,"szintetikus kaucsuk, polietilén vagy poliuretán anyagú csőhéjjal,"]
[null,null,"teljes felületen ragasztva,"]
[null,null,"KAIFLEX ST típusú, csőhéj, anyaga: szintetikus kaucsuk, szaniter, légtechnikai, klima és hűtési csővezetékre,"]
[null,null,"19 mm vastag"]
[12,"48-830-021-022-71-87040","22 mm átm. csővezetékre",0,"m","A.:",null,{"$f":"ROUND( D$998*G998,0 )","v":0}]
[{"$nulls":5},"D.:",null,null,{"$f":"ROUND( D$998*G999,0 )","v":0}]
[{"$nulls":5},"G.:",null,null,null,{"$f":"ROUND( D$998*G1000,2 )","v":0}]
[]
[]
[{"$nulls":7},{"$f":"ROUND( SUM(H896:H1002),0 )","v":0},{"$f":"ROUND( SUM(I896:I1002),0 )","v":0},{"$f":"ROUND( SUM(J896:J1002),2 )","v":0}]
[{"$nulls":7},{"$f":"ROUND( SUM(H241,H590,H894,H1003),0 )","v":0},{"$f":"ROUND( SUM(I241,I590,I894,I1003),0 )","v":0},{"$f":"ROUND( SUM(J241,J590,J894,J1003),0 )","v":0}]

{"sheet":"FOOSSZ","index":1,"n_rows":41,"n_cols":4,"rows_kept":41,"cut":false,"hidden":false,"merged":[[39,2,39,3],[40,2,40,3],[15,0,15,3],[1,1,1,3],[2,1,2,3],[3,1,3,3],[5,1,5,3],[6,1,6,3],[7,1,7,3],[8,1,8,3],[10,0,10,3],[12,1,12,3],[13,0,13,3],[14,0,14,3],[38,0,38,3],[16,1,16,3],[25,0,25,3],[29,2,29,3],[31,2,31,3],[34,2,34,3],[36,0,36,3]]}
["Megrendelő:"]
["neve: ","Békés Város Önkormányzata"]
["címe: ","5630 Békés, Petőfi Sándor utca 2."]
[" "]
["Munka megnevezése:"]
[null,"TOP-1.2.1-15 Társadalmi és környezeti"]
[null,"szempontból fenntartható turizmusfejlesztés"]
[null,"Békés Dánfok Hrsz.: 6929/50."]
[null,"közmű és épületgépészeti szerelési munkáiról"]
{"$rows_empty":9}
["Fejezet címe",null,"Anyag","Díj"]
[]
["Fűtés",null,{"$f":"SUM(KVS!H241)","v":0},{"$f":"SUM(KVS!I241,KVS!J241)","v":0}]
["Öntözés",null,{"$f":"SUM(KVS!H590)","v":0},{"$f":"SUM(KVS!I590,KVS!J590)","v":0}]
["Közműellátás",null,{"$f":"SUM(KVS!H894)","v":0},{"$f":"SUM(KVS!I894,KVS!J894)","v":0}]
["Zuhanyzó víz ellátása szennvíz elvezetése",null,{"$f":"SUM(KVS!H1003)","v":0},{"$f":"SUM(KVS!I1003,KVS!J1003)","v":0}]
[]
["Összesítések"]
[]
["Alapösszeg összesen:",null,{"$f":"SUM(C21:C25)","v":0},{"$f":"SUM(D21:D25)","v":0}]
[]
["Nettó összesen:",null,{"$f":"C28+D28","v":0}]
[]
["ÁFA:",0.27,{"$f":"IF( B32>1,C30*B32/100,C30*B32)","v":0}]
[]
[]
["Bruttó összesen:",null,{"$f":"C32+C30","v":0}]
[]
[]
[]
[]
[null,null,"_____________________________________"]
[null,null,"Aláírás"]